Cogmind - Beta 17 @@@ ROGUE MODE // 2026.07.15 @ 17:40:15 Player: teag2 Result: Self-destructed Performance ------------- Evolutions (5) 2500 Regions Visited (11) 2200 Robots Destroyed (168) 840 Value Destroyed (4596) 4596 Prototype IDs (33) 660 Alien Tech Used (0) 0 Bonus (972) 972 TOTAL SCORE: 11768 Bonus ------- High Alert Combat Kills 494 Follower Combat Kills 244 Aligned with FarCom 300 Friendly Fire -66 Cogmind --------- Core Integrity 580/1000 Matter 154/300 Energy 350/350 System Corruption 0% Temperature Cool (0) Movement Walking (190) Ox1 Location -5/Extension Parts ------- > --- POWER (1) -------- Enhanced Fission Core > --- PROPULSION (6) --- Carbon-fiber Leg Carbon-fiber Leg Cooled Cesium-ion Thruster > --- UTILITY (8) ------ Advanced Heat Sink Improved Trap Scanner Advanced ECM Suite Improved Medium Armor Plating Graphene Brace Makeshift Hacking Suite System Shield Advanced System Shield > --- WEAPON (2) ------- Bore Cannon > --- INVENTORY (5) ---- Neutrino Core Graphene Brace Hacking Suite CPS Tube (2) Maul Peak State ------------ > --- POWER ------------ Enhanced Fission Core > --- PROPULSION ------- Antigrav System Cooled Cesium-ion Thruster Nuclear Pulse Array Nuclear Pulse Array > --- UTILITY ---------- Improved Trap Scanner Advanced ECM Suite Cloaking Device Graphene Brace Makeshift Hacking Suite System Shield Improved System Shield Trap Reconfigurator > --- WEAPON ----------- Precision Assault Rifle Maul > --- INVENTORY -------- Micro Fission Core Graphene Brace Advanced System Shield CPS Tube [Rating: 94] Favorites ----------- Power Light Ion Engine Engine Light Ion Engine Power Core Enhanced Fission Core Propulsion Light Treads Treads Light Treads Leg Carbon-fiber Leg Wheel Compact Wheel Hover Unit Gravmag System Flight Unit Cesium-ion Thruster Utility Huge Storage Unit Device Graphene Brace Storage Huge Storage Unit Processor Core Analyzer Hackware System Shield Protection Hardened Light Armor Plating Weapon Assault Rifle Energy Gun Particle Gun Ballistic Gun Assault Rifle Ballistic Cannon Flak Cannon Launcher Grenade Launcher Special Weapon Plasma Cutter Impact Weapon Maul Slashing Weapon Greatsword Build | -11 -10 -10 -10 -9 -8 -7 -7 -7 -7 -5 -5 ------- Run | Yrd Mat Min Exi Min Mat Fac Sto Rec Scr Fac Ext Slots Evolved 10 | . . . . . 4 2 . . . 4 . Power . | . . . . . . . . . . . . Propulsion 4 | . . . . . 2 . . . . 2 . Utility 6 | . . . . . 2 2 . . . 2 . Weapon . | . . . . . . . . . . . . Parts Attached 145 | 6 7 6 1 . 36 40 . 11 3 24 11 Power 19 | 1 1 1 . . 4 4 . 1 . 6 1 Engine 14 | 1 1 1 . . 4 2 . 1 . 4 . Core 5 | . . . . . . 2 . . . 2 1 Reactor . | . . . . . . . . . . . . Propulsion 45 | 2 1 2 1 . 13 15 . 2 . 5 4 Treads 18 | 2 1 2 1 . 12 . . . . . . Leg 7 | . . . . . . 3 . . . . 4 Wheel 5 | . . . . . . 5 . . . . . Hover 6 | . . . . . 1 4 . . . 1 . Flight 9 | . . . . . . 3 . 2 . 4 . Utility 51 | 1 4 2 . . 9 13 . 7 2 10 3 Device 21 | . 1 1 . . 4 3 . 4 1 6 1 Storage 5 | 1 2 . . . . 1 . 1 . . . Processor 3 | . . . . . . 2 . 1 . . . Hackware 9 | . . . . . 1 2 . 1 1 4 . Protection 13 | . 1 1 . . 4 5 . . . . 2 Artifact . | . . . . . . . . . . . . Weapon 30 | 2 1 1 . . 10 8 . 1 1 3 3 Energy Gun 13 | . . . . . 6 4 . . . 1 2 Energy Cannon . | . . . . . . . . . . . . Ballistic Gun 7 | 2 1 . . . 1 2 . . . 1 . Ballistic Cannon 2 | . . . . . 1 . . . . . 1 Launcher 3 | . . 1 . . 2 . . . . . . Special Weapon 1 | . . . . . . 1 . . . . . Impact Weapon 2 | . . . . . . . . 1 . 1 . Slashing Weapon 2 | . . . . . . 1 . . 1 . . Piercing Weapon . | . . . . . . . . . . . . Special Melee Weapon . | . . . . . . . . . . . . Unidentified Prototypes 10 | . . . . . 4 1 . 1 . 4 . Parts Lost 62 | . 1 3 . . 16 27 2 . . 5 8 Power 8 | . . 1 . . 3 4 . . . . . Propulsion 27 | . . 1 . . 6 13 . . . 3 4 Utility 17 | . . 1 . . 4 7 1 . . 1 3 Weapon 10 | . 1 . . . 3 3 1 . . 1 1 Highest Loss Streak 9 | . 1 2 . . 7 9 2 . . 1 2 To Critical Strikes . | . . . . . . . . . . . . Average Backups 18 | 2 21 24 24 25 23 18 4 5 7 5 4 Power 1 | . 1 1 2 2 3 1 . . 1 2 1 Propulsion 2 | 1 7 6 4 4 1 . . . . . . Utility 10 | . 9 11 13 14 14 13 2 2 4 1 2 Weapon 2 | 1 3 3 5 5 3 2 . 1 1 . . Tool/Special . | . . . . . . . . . . . . Unused Backups 56 | . 3 5 . . 12 20 . 2 2 8 4 Power 12 | . . . . . 4 . . . . 7 1 Propulsion 7 | . 2 5 . . . . . . . . . Utility 25 | . 1 . . . 6 12 . 2 1 1 2 Weapon 11 | . . . . . 2 8 . . 1 . . Tool/Special 1 | . . . . . . . . . . . 1 Average Slot Usage (%) 93 | . 99 99 100 100 97 90 83 86 91 83 82 Engine 8 | . 13 13 14 14 8 5 . 4 7 1 . Treads 20 | . 28 27 28 28 35 14 . . . . . Leg 1 | . . . . . . 2 . . . . 12 Flight 4 | . . . . . . 1 15 27 30 23 5 Device 14 | . 1 5 14 14 13 21 29 24 14 28 23 Storage 8 | . 14 14 14 14 9 5 . 4 7 1 . Hackware 4 | . . . . . 4 3 . 4 14 14 17 Protection 7 | . 12 8 . . 8 10 . . . . 2 Energy Gun 4 | . . . . . 8 11 . . . . 6 Ballistic Gun 9 | . 27 14 14 14 6 2 6 . . 1 . Launcher 2 | . . 13 14 14 1 . . . . . . Peak Build Rating 94 | 6 12 13 14 14 37 55 49 52 48 94 85 Average Rating 33 | 3 10 12 13 14 28 41 48 46 47 84 70 On Entrance 29 | . 6 12 13 14 14 36 49 43 39 48 85 Avg Prop Armor Cover (%) 6 | . . . . . . 6 7 7 . 5 1 Naked Turns . | . . . . . . . . . . . . Heaviest Build 118 | 12 93 95 89 89 108 118 12 16 17 33 42 Greatest Support 86 | 40 40 40 40 40 86 82 11 20 20 41 45 Greatest Overweight (x) 39 | . 2 2 2 2 1 39 1 . . . 2 Average Overweight (x) . | . 1 2 2 2 1 1 . . . . . Largest Inventory Capacity 25 | 8 25 25 25 25 25 25 5 8 8 8 5 Average Capacity 19 | 6 23 25 25 25 25 21 5 7 8 5 5 Most Carried 25 | 5 25 25 25 25 25 25 5 8 8 8 5 Average Carried 18 | 2 21 24 24 25 23 18 3 5 7 5 4 Final Capacity 25 | 8 25 25 25 25 25 5 5 8 8 5 5 Final Carried 25 | 4 25 25 25 25 19 4 5 8 8 5 5 Class Distribution -------------------- 47% | Mutant 25% | Scavenger-Mutant 11% | Hacker-Sprinter 5% | Hacker-Mutant Dominant Class ---------------- Mutant | -10/Materials Mutant | -10/Mines Mutant | -10/Exiles Skirmisher | -9/Mines Mutant | -8/Materials Scavenger-Mutant | -7/Factory Assassin | -7/Storage Sprinter | -7/Recycling Hacker-Sprinter | -7/Scraptown Hacker-Sprinter | -5/Factory Hacker-Mutant | -5/Extension Resources | -11 -10 -10 -10 -9 -8 -7 -7 -7 -7 -5 -5 ----------- Run | Yrd Mat Min Exi Min Mat Fac Sto Rec Scr Fac Ext Matter Collected 3541 | 206 542 233 10 . 1276 527 . 308 20 210 209 Remotely . | . . . . . . . . . . . . Salvage Created 5811 | . 685 97 . . 2060 1797 . 576 . 260 336 Parts 281 | . 43 10 . . 123 81 . 9 . 5 10 Haulers Intercepted 8 | . 2 . . . 5 1 . . . . . Recyclers Shooed 5 | . . . . . 1 2 . 2 . . . Parts Field Recycled . | . . . . . . . . . . . . Retrieved Matter . | . . . . . . . . . . . . Parts Self-Destructed . | . . . . . . . . . . . . Prevented . | . . . . . . . . . . . . Parts Restored . | . . . . . . . . . . . . Kills | -11 -10 -10 -10 -9 -8 -7 -7 -7 -7 -5 -5 ------- Run | Yrd Mat Min Exi Min Mat Fac Sto Rec Scr Fac Ext Combat Hostiles Destroyed 108 | . 14 7 . . 51 32 . . . . 4 Melee 1 | . . . . . 1 . . . . . . Guns 69 | . 14 1 . . 23 29 . . . . 2 Cannons 8 | . . . . . 8 . . . . . . AOE 26 | . . 6 . . 19 . . . . . 1 Classes Destroyed 17 | . 6 3 . . 7 1 . . . . . Worker 14 | . 3 1 . . 4 6 . . . . . Builder 6 | . . . . . 2 4 . . . . . Tunneler 3 | . . 1 . . 1 1 . . . . . Hauler 8 | . 2 . . . 5 1 . . . . . Recycler 19 | . . . . . 6 4 . 7 . 1 1 Operator 2 | . 1 . . . . 1 . . . . . Watcher 8 | . 3 . . . 4 . . . . 1 . Swarmer 34 | . 6 3 . . 15 10 . . . . . Grunt 39 | . 8 . . . 18 9 . . . . 4 Brawler 2 | . . . . . 2 . . . . . . Duelist 3 | . . . . . 3 . . . . . . Sentry 13 | . . 2 . . 9 2 . . . . . Demolisher 2 | . . 2 . . . . . . . . . Specialist 2 | . . . . . 2 . . . . . . Hunter 3 | . . . . . 1 2 . . . . . Programmer 9 | . . . . . . 9 . . . . . Heavy 1 | . . . . . 1 . . . . . . Best Kill Streak 10 | . 4 4 . . 10 5 . 6 . 1 1 Combat Bots Only 7 | . 3 3 . . 7 5 . . . . 1 Max Kills in Single Turn 3 | . 1 3 . . 3 2 . 1 . 1 1 Gunslinging . | . . . . . . . . . . . . Exploded 3 | . . 2 . . 3 . . . . . 1 Melee 1 | . . . . . 1 . . . . . . Uniques/NPCs Destroyed . | . . . . . . . . . . . . Combat | -11 -10 -10 -10 -9 -8 -7 -7 -7 -7 -5 -5 -------- Run | Yrd Mat Min Exi Min Mat Fac Sto Rec Scr Fac Ext Hostile Shots Fired 1025 | . 89 25 . . 253 398 63 18 . 100 79 Missed 348 | . 27 6 . . 61 126 33 12 . 55 28 Hits 677 | . 62 19 . . 192 272 30 6 . 45 51 Melee 22 | . . . . . 20 1 . . . . 1 Projectile 655 | . 62 19 . . 172 271 30 6 . 45 50 AOE 8 | . . 8 . . . . . . . . . Critical Strikes 20 | . . . . . 10 6 . . . . 4 Actively Blocked 13 | . . . . . 3 6 . . . . 4 Part Disruptions 3 | . . . . . . 3 . . . . . Damage Taken 10111 | . 666 466 . . 3425 3428 219 45 . 695 1167 Core 1620 | . 102 58 . . 411 554 57 18 . 149 271 Absorbed by Shields 43 | . . . . . . . . . . . 43 Ignored by Resistances 197 | . . . . . 122 75 . . . . . Regen/Repaired (Parts) 286 | . 63 . . . 117 106 . . . . . Core Remaining (%) 42 | 100 . . . 36 25 . . . 10 . . Volleys Fired 424 | . 88 15 . . 131 146 . . . . 44 Largest 2 | . 2 1 . . 2 2 . . . . 2 Hottest 150 | . 40 30 . . 128 134 . . . . 150 Shots Fired 782 | . 176 15 . . 233 292 . . . . 66 Gun 663 | . 176 1 . . 157 292 . . . . 37 Cannon 80 | . . . . . 51 . . . . . 29 Launcher 39 | . . 14 . . 25 . . . . . . Special . | . . . . . . . . . . . . Kinetic 371 | . 176 1 . . 116 49 . . . . 29 Thermal 372 | . . . . . 92 243 . . . . 37 Explosive 39 | . . 14 . . 25 . . . . . . Electromagnetic . | . . . . . . . . . . . . Robot Hit Streak 26 | . 10 11 . . 26 9 . . . . 7 Robot Miss Streak 7 | . 4 1 . . 6 7 . . . . 3 Penetration Max 1 | . . . . . . 1 . . . . 1 Secondary Targets 5 | . 3 . . . 1 1 . . . . . Max Gunslinging Chain 1 | . 1 . . . 1 1 . . . . . Shots Hit Robots 527 | . 106 13 . . 169 194 . 10 . 5 30 Core Hits 311 | . 39 19 . . 159 77 . 4 . 1 12 Critical Kills 1 | . 1 . . . . . . . . . . Critical Parts Destroyed 7 | . 1 . . . . 1 . . . 1 4 Critical Strikes 24 | . 2 . . . 4 10 . . . 1 7 Burn 15 | . . . . . 4 9 . . . . 2 Destroy 7 | . 2 . . . . 1 . . . . 4 Smash 2 | . . . . . . . . . . 1 1 Melee Attacks 41 | . . . . . . 1 . 13 . 24 3 Impact 17 | . . . . . . . . . . 14 3 Slashing 24 | . . . . . . 1 . 13 . 10 . Piercing . | . . . . . . . . . . . . Sneak Attacks 9 | . . . . . . . . 8 . 1 . Combat Hostiles . | . . . . . . . . . . . . Follow-up Attacks . | . . . . . . . . . . . . Damage Inflicted 13151 | . 1225 448 . . 5731 3811 . 733 . 397 806 Guns 7654 | . 1219 12 . . 2078 3747 . . . . 598 Cannons 950 | . . . . . 829 . . . . . 121 Explosions 3213 | . . 430 . . 2727 56 . . . . . Melee 1217 | . . . . . . . . 733 . 397 87 Ramming 117 | . 6 6 . . 97 8 . . . . . Kinetic 3659 | . 1219 12 . . 1675 632 . . . . 121 Thermal 5117 | . . . . . 1404 3115 . . . . 598 Explosive 3041 | . . 430 . . 2555 56 . . . . . Electromagnetic . | . . . . . . . . . . . . Impact 178 | . . . . . . . . . . 91 87 Slashing 1039 | . . . . . . . . 733 . 306 . Piercing . | . . . . . . . . . . . . Highest Corruption 14 | . . . . . . 13 5 14 . . . Average Corruption 6 | . . . . . . 5 5 11 . . . Corruption Purged 3 | . . . . . . . . 3 . . . Corruption Blocked . | . . . . . . . . . . . . Effects 119 | . . . . . . 93 8 18 . . . Message Errors 29 | . . . . . . 21 1 7 . . . Matter Fused 29 | . . . . . . 23 4 2 . . . Heat Flow Errors 8 | . . . . . . 6 . 2 . . . Energy Discharges 9 | . . . . . . 5 1 3 . . . Parts Rejected 2 | . . . . . . 2 . . . . . Parts Fused 1 | . . . . . . . . 1 . . . Data Loss (minor) 16 | . . . . . . 12 2 2 . . . Data Loss (major) 9 | . . . . . . 9 . . . . . Misfires 10 | . . . . . . 10 . . . . . Alerts 2 | . . . . . . 2 . . . . . Misdirections 2 | . . . . . . 1 . 1 . . . Weapon Failures 2 | . . . . . . 2 . . . . . Overload Shots . | . . . . . . . . . . . . Overflow Damage 468 | . . 9 . . 85 . . 176 . 158 40 Projectiles . | . . . . . . . . . . . . Explosions 94 | . . 9 . . 85 . . . . . . Melee 374 | . . . . . . . . 176 . 158 40 Knockbacks 26 | . . . . . 25 . . . . . 1 Impact 4 | . . . . . 3 . . . . . 1 Kinetic 21 | . . . . . 21 . . . . . . Secondary 1 | . . . . . 1 . . . . . . Self-Inflicted Damage 193 | . . 56 . . 137 . . . . . . Shots 7 | . . 4 . . 3 . . . . . . Rammed 19 | . 3 . . 1 14 1 . . . . . Targets Rammed 22 | . 3 1 . 1 16 1 . . . . . Kicked . | . . . . . . . . . . . . Crushed 3 | . . 1 . . 2 . . . . . . Highest Temperature 318 | . 58 18 . . 318 270 . 219 . . 36 Average Temperature 44 | . 13 10 . . 58 55 . 93 . . 12 Received Heat Transfer 2245 | . 249 45 . . 1035 513 60 12 . 54 277 Effects 1 | . . . . . . 1 . . . . . Energy Bleed 1 | . . . . . . 1 . . . . . Siege Activations . | . . . . . . . . . . . . Martial Activations . | . . . . . . . . . . . . Shielding Activations . | . . . . . . . . . . . . Robots Disrupted . | . . . . . . . . . . . . Combat Hostiles . | . . . . . . . . . . . . Robots Corrupted 2 | . . . . . . . . . . 1 1 Combat Hostiles 1 | . . . . . . . . . . . 1 Parts Fried 1 | . . . . . . . . . . . 1 Impact Corruptions 3 | . . . . . . . . . . 2 1 Robots Melted 3 | . . . . . . 3 . . . . . Combat Hostiles 3 | . . . . . . 3 . . . . . Parts Melted 28 | . . . . . 3 24 . . . . 1 Heat Transferred 11199 | . . . . . 3207 6808 . . . . 1184 Parts Sabotaged . | . . . . . . . . . . . . Parts Stolen . | . . . . . . . . . . . . Parts Stripped . | . . . . . . . . . . . . Power Chain Reactions . | . . . . . . . . . . . . Alert | -11 -10 -10 -10 -9 -8 -7 -7 -7 -7 -5 -5 ------- Run | Yrd Mat Min Exi Min Mat Fac Sto Rec Scr Fac Ext Maximum Alert Level 3 | . . . . . 3 2 1 . . 1 1 Low Security (%) 68 | 100 100 100 . 100 21 41 47 100 . 97 99 Level 1 10 | . . . . . 7 31 52 . . 2 . Level 2 19 | . . . . . 64 26 . . . . . Level 3 1 | . . . . . 7 . . . . . . Level 4 . | . . . . . . . . . . . . Level 5 . | . . . . . . . . . . . . High Security . | . . . . . . . . . . . . Max Security . | . . . . . . . . . . . . Sterilizations 1 | . . . . . 1 . . . . . . Peak Influence 758 | . 189 139 . . 758 614 275 168 . 249 198 Initial 341 | . . . . . . 341 271 37 . . 79 Average 185 | . 60 23 . . 442 250 197 129 . 68 91 Influence Increases 5040 | . 473 222 . . 1677 1162 17 306 . 757 426 Destroy 0b10 Robot/C 2300 | . 280 140 . . 1020 640 . . . . 220 Destroy 0b10 Robot/NC 305 | . 45 10 . . 110 85 . 35 . 15 5 Destroy Leader 532 | . 70 20 . . 238 182 . . . 2 20 Allied During Kill 28 | . . . . . . . . . . . 28 Trap Triggered on 0b10 200 | . . . . . . 30 . . . 160 10 Successful Hack 265 | . 32 . . . 64 93 17 16 . 10 33 Select Force Hacks 300 | . . . . . 30 . . 240 . 30 . Disable Machine 150 | . . . . . 105 45 . . . . . Destroy Structure 255 | . 1 52 . . 110 42 . . . 30 20 Partial Spotted 30 | . . . . . . . . . . 30 . Lose Combat Pursuer 675 | . 45 . . . . 45 . 15 . 480 90 Influence Decreases 5040 | . 473 222 . . 926 1315 517 275 129 594 589 Entered New Map 1011 | . . . . . . 410 327 61 129 . 84 Time Decay 2997 | . 463 192 . . 606 635 170 214 . 354 363 Search Patrol Dispatched 200 | . . . . . . . . . . 200 . Lost Part 580 | . 10 30 . . 160 260 20 . . 40 60 Lost Ally 102 | . . . . . 10 10 . . . . 82 Purge Threat 150 | . . . . . 150 . . . . . . Squads Dispatched 40 | . 2 . . . 9 19 2 . . 8 . Investigation 13 | . 1 . . . 2 6 1 . . 3 . Extermination 14 | . . . . . . 9 1 . . 4 . Reinforcement 9 | . 1 . . . 4 3 . . . 1 . Assault 4 | . . . . . 3 1 . . . . . Garrison . | . . . . . . . . . . . . Intercept . | . . . . . . . . . . . . Searches Triggered 2 | . . . . . . . . . . 2 . Construction Impeded 5 | . . . . . 3 2 . . . . . Haulers Reinforced . | . . . . . . . . . . . . Active Scanning Responses . | . . . . . . . . . . . . Cargo Convoy Interrupts . | . . . . . . . . . . . . Stealth | -11 -10 -10 -10 -9 -8 -7 -7 -7 -7 -5 -5 --------- Run | Yrd Mat Min Exi Min Mat Fac Sto Rec Scr Fac Ext Distress Signals 14 | . 1 2 . . 6 1 . . . 2 2 Communications Jammed 25 | . . . . . 25 . . . . . . Distress Signals 17 | . . . . . 17 . . . . . . Times Spotted 226 | . 31 7 . . 67 49 5 2 . 41 24 Peak Tracking Total 13 | . 4 3 . . 6 6 6 1 . 13 7 Tactical Retreats 20 | . 2 . . . . 2 . 1 . 13 2 ECM-based Alert Blocks 9 | . . . . . . . . . . 9 . Traps | -11 -10 -10 -10 -9 -8 -7 -7 -7 -7 -5 -5 ------- Run | Yrd Mat Min Exi Min Mat Fac Sto Rec Scr Fac Ext Traps Triggered 6 | . . . . . 1 5 . . . . . Indirectly . | . . . . . . . . . . . . Trap Hack Attempts . | . . . . . . . . . . . . Triggered . | . . . . . . . . . . . . Disarmed . | . . . . . . . . . . . . Reprogrammed . | . . . . . . . . . . . . Reused 20 | . . . . . . 3 . . . 16 1 Traps Reconfigurated 33 | . . . . . . 5 1 . . 25 2 Traps Extracted . | . . . . . . . . . . . . Installed . | . . . . . . . . . . . . Triggered 20 | . . . . . . 3 . . . 16 1 Machines | -11 -10 -10 -10 -9 -8 -7 -7 -7 -7 -5 -5 ---------- Run | Yrd Mat Min Exi Min Mat Fac Sto Rec Scr Fac Ext Machines Disabled 11 | . . 1 . . 7 3 . . . . . Max in Single Turn 3 | . . 1 . . 2 3 . . . . . Garrison Access 2 | . . . . . . . . . . 2 . Machines Repaired . | . . . . . . . . . . . . Machines Dismantled . | . . . . . . . . . . . . Machines Sabotaged . | . . . . . . . . . . . . Overloaded Fab Kills . | . . . . . . . . . . . . Hacking | -11 -10 -10 -10 -9 -8 -7 -7 -7 -7 -5 -5 --------- Run | Yrd Mat Min Exi Min Mat Fac Sto Rec Scr Fac Ext Machines Accessed 70 | . 8 . 1 . 11 15 5 14 3 9 4 Terminals 41 | . 6 . . . 8 10 4 6 . 3 4 Fabricators 3 | . . . . . . 1 . . . 2 . Repair Stations 4 | . 1 . . . 1 2 . . . . . Recycling Units 13 | . 1 . . . 1 1 1 8 . 1 . Scanalyzers 3 | . . . . . 1 1 . . . 1 . Garrison Access 2 | . . . . . . . . . . 2 . Total Hacks 241 | . 31 . 1 . 38 43 17 40 16 43 12 Successful 136 | . 14 . 1 . 27 21 8 17 16 27 5 Failed 103 | . 17 . . . 10 22 9 23 . 15 7 Catastrophic 21 | . 2 . . . 2 3 1 10 . 1 2 Database Lockouts 2 | . . . . . 1 . . . . 1 . Manual 117 | . 21 . 1 . 25 24 9 19 . 13 5 Terminals 139 | . 24 . . . 28 29 13 22 . 11 12 Fabricators 10 | . . . . . . 1 . . . 9 . Repair Stations 14 | . 4 . . . 3 7 . . . . . Recycling Units 32 | . 3 . . . 2 1 4 18 . 4 . Scanalyzers 27 | . . . . . 5 5 . . . 17 . Garrison Access 2 | . . . . . . . . . . 2 . Terminal Hacks 38 | . 3 . 1 . 7 2 4 1 16 1 3 Record 16 | . . . . . . . . . 16 . . Part Schematic 1 | . . . . . . . . 1 . . . Open Door 3 | . . . . . . . 1 . . . 2 Level Access Points 1 | . . . . . 1 . . . . . . Branch Access Points 1 | . . . . . 1 . . . . . . Terminal Index 4 | . 1 . . . 1 1 . . . 1 . Recycling Unit Index 1 | . . . . . . . 1 . . . . Unreport Threat 1 | . . . . . 1 . . . . . . Locate Traps 6 | . 1 . . . 2 1 2 . . . . Registered Components 1 | . 1 . . . . . . . . . . Zone Layout 2 | . . . . . 1 . . . . . 1 Proto ID Catalog 1 | . . . 1 . . . . . . . . Fabricator Hacks 6 | . . . . . . . . . . 6 . Load Schematic 3 | . . . . . . . . . . 3 . Build 3 | . . . . . . . . . . 3 . Repair Station Hacks 9 | . 2 . . . 2 5 . . . . . Scan Component 5 | . 1 . . . 1 3 . . . . . Repair 4 | . 1 . . . 1 2 . . . . . Recycling Unit Hacks 13 | . 1 . . . 1 1 3 6 . 1 . Process 1 | . . . . . . . 1 . . . . Report Inventory 7 | . 1 . . . . . 1 4 . 1 . Retrieve Matter 1 | . . . . . . . 1 . . . . Retrieve Components 4 | . . . . . 1 1 . 2 . . . Scanalyzer 19 | . . . . . 3 3 . . . 13 . Insert Component 7 | . . . . . 1 1 . . . 5 . Analyze 8 | . . . . . 1 2 . . . 5 . Retrieve Study 4 | . . . . . 1 . . . . 3 . Garrison Access Hacks 2 | . . . . . . . . . . 2 . Seal Access 2 | . . . . . . . . . . 2 . Unauthorized Hacks 49 | . 8 . . . 14 10 1 10 . 4 2 Terminals 37 | . 8 . . . 13 9 1 2 . 2 2 Track 1 | . . . . . 1 . . . . . . Assimilate 2 | . . . . . 1 1 . . . . . Botnet 9 | . 2 . . . 3 2 . 1 . . 1 Operators 3 | . 1 . . . 1 1 . . . . . Skim 22 | . 5 . . . 7 5 1 1 . 2 1 Fabricators 2 | . . . . . . 1 . . . 1 . Recompile 2 | . . . . . . 1 . . . 1 . Repair Stations . | . . . . . . . . . . . . Recycling Units 10 | . . . . . 1 . . 8 . 1 . Tunnel 10 | . . . . . 1 . . 8 . 1 . Scanalyzers . | . . . . . . . . . . . . Garrison Access . | . . . . . . . . . . . . Data Cores Recovered . | . . . . . . . . . . . . Used . | . . . . . . . . . . . . Hacking Detections 52 | . 8 . . . 10 12 6 10 . 4 2 Full Trace Events 14 | . 2 . . . 1 3 1 6 . 1 . Feedback Events 1 | . . . . . . . . 1 . . . Corruption 1 | . . . . . . . . 1 . . . Feedback Blocked . | . . . . . . . . . . . . Robot Schematics Acquired . | . . . . . . . . . . . . Robots Built . | . . . . . . . . . . . . Authchips . | . . . . . . . . . . . . Time . | . . . . . . . . . . . . Total Robot Build Rating . | . . . . . . . . . . . . Part Schematics Acquired 7 | . . . . . 1 1 . 1 . 4 . Parts Built 5 | . . . . . . . . . . 5 . Authchips 2 | . . . . . . . . . . 2 . Time 141 | . . . . . . . . . . 141 . Total Part Build Rating 27 | . . . . . . . . . . 27 . Part Studies Acquired 4 | . . . . . 1 . . . . 3 . Parts Repaired 4 | . 1 . . . 1 2 . . . . . Time 149 | . 13 . . . 13 123 . . . . . Parts Recycled . | . . . . . . . . . . . . Recycled Matter 24 | . . . . . . . 24 . . . . Retrieved Matter 24 | . . . . . . . 24 . . . . Retrieved Components 11 | . . . . . 2 3 . 6 . . . Parts Scanalyzed 6 | . . . . . 1 1 . . . 4 . Part Schematics Acquired 6 | . . . . . 1 1 . . . 4 . Parts Damaged 1 | . . . . . . . . . . 1 . Bothacking | -11 -10 -10 -10 -9 -8 -7 -7 -7 -7 -5 -5 ------------ Run | Yrd Mat Min Exi Min Mat Fac Sto Rec Scr Fac Ext Used RIF Installer . | . . . . . . . . . . . . Robots Hacked . | . . . . . . . . . . . . Non-combat . | . . . . . . . . . . . . Combat . | . . . . . . . . . . . . Robot Hacks Applied . | . . . . . . . . . . . . Relay Couplers Released . | . . . . . . . . . . . . Fabnet Peak Effective % . | . . . . . . . . . . . . Robots Rewired 6 | . . . . . . . . . . . 6 Allies Hacked . | . . . . . . . . . . . . Hacks Repelled . | . . . . . . . . . . . . Allies | -11 -10 -10 -10 -9 -8 -7 -7 -7 -7 -5 -5 -------- Run | Yrd Mat Min Exi Min Mat Fac Sto Rec Scr Fac Ext Total Allies 12 | . . 1 . . 1 1 . . . . 9 Largest Group 5 | . . 1 1 . 1 1 . . . . 5 Highest-Rated Group 281 | . . 31 31 . 26 26 . . . . 281 Highest-Rated Ally 159 | . . 31 31 . 26 26 . . . . 159 Total Orders . | . . . . . . . . . . . . Ally Attacks 47 | . . . . . . . . . . . 47 Total Damage 830 | . . . . . . . . . . . 830 Kills 7 | . . . . . . . . . . . 7 Allies Corrupted . | . . . . . . . . . . . . Allies Melted 1 | . . . . . . . . . . . 1 Intel | -11 -10 -10 -10 -9 -8 -7 -7 -7 -7 -5 -5 ------- Run | Yrd Mat Min Exi Min Mat Fac Sto Rec Scr Fac Ext Active Infowar (turns) 6586 | . . 822 859 196 1525 834 87 . . 1373 890 Terrain 2831 | . . 822 859 196 244 623 87 . . . . Traps 2248 | . . . . . . . . . . 1358 890 Cloaking 983 | . . . . . . . . . . 881 102 Jamming 1492 | . . . . . 1281 211 . . . . . ECM 69 | . . . . . . . . . . 69 . Robot Analysis Total . | . . . . . . . . . . . . Derelict Logs Recovered . | . . . . . . . . . . . . Drone Launches . | . . . . . . . . . . . . Drone Recoveries . | . . . . . . . . . . . . Exploration | -11 -10 -10 -10 -9 -8 -7 -7 -7 -7 -5 -5 ------------- Run | Yrd Mat Min Exi Min Mat Fac Sto Rec Scr Fac Ext Turns Passed 17221 | 92 3137 2102 859 196 3187 4032 345 459 338 1584 890 Spaces Moved 11585 | 61 952 582 268 61 1106 1752 230 1227 1192 3442 712 Core 31 | 19 . . . . . 12 . . . . . Treads 3693 | 42 952 582 268 61 1106 682 . . . . . Legs 511 | . . . . . . . . . . . 511 Wheels 490 | . . . . . . 490 . . . . . Hover 394 | . . . . . . 394 . . . . . Flight 6466 | . . . . . . 174 230 1227 1192 3442 201 Fastest Speed 24 | 50 160 320 320 320 213 52 34 27 27 24 30 Average Speed 119 | 125 287 320 320 320 221 175 101 29 27 27 100 Slowest Speed 2000 | 160 320 320 320 320 240 2000 114 34 27 32 195 Overloaded Moves 62 | . . . . . . . . . . 8 54 Propulsion Burnouts . | . . . . . . . . . . . . Robots Hopped 27 | . . . . . . . . 6 . 19 2 Potential Cave-ins . | . . . . . . . . . . . . Cave-ins Triggered . | . . . . . . . . . . . . Exploration Rate (%) 53 | 4 86 93 66 25 74 37 28 99 55 34 38 Regions Visited 11 Branch Regions 7 Pre-discovered Areas 16 | . 2 . . . 3 2 . 8 . 1 . Known Exits Taken 6 | . 1 . . . 1 1 1 . 1 1 . Unknown Exits Taken 5 | 1 . 1 1 1 . . . 1 . . . Scrap Searched 2 | . . . . . . . . . 2 . . Spaces Dug 34 | . . . . . . 1 . . . 15 18 Terrain Destroyed 281 | . . 61 . . 137 47 . . . 15 21 Melee 16 | . . . . . . 1 . . . 15 . Projectile 20 | . . . . . . . . . . . 20 AOE 244 | . . 61 . . 137 46 . . . . . Terrain Rammed . | . . . . . . . . . . . . Walls Destroyed . | . . . . . . . . . . . . Machines Disabled . | . . . . . . . . . . . . Actions | -11 -10 -10 -10 -9 -8 -7 -7 -7 -7 -5 -5 --------- Run | Yrd Mat Min Exi Min Mat Fac Sto Rec Scr Fac Ext Total 14101 | 76 1177 809 272 61 1619 2420 340 1297 1208 4014 808 Wait 1590 | . 91 190 . . 242 414 108 35 2 498 10 Move 11520 | 60 951 581 267 60 1105 1751 229 1214 1191 3403 708 Hop 27 | . . . . . . . . 6 . 19 2 Pick Up 169 | 10 28 9 2 . 37 43 2 9 6 19 4 Fast Attach 42 | . 2 . . . 9 5 . 5 1 13 7 Attach 83 | 6 2 3 . . 26 30 . 5 2 5 4 Detach 13 | . . . . . 3 4 . 3 1 1 1 Swap 49 | . 4 3 1 . 20 9 . 1 1 8 2 Drop 102 | . 8 7 2 . 30 16 1 6 4 24 4 Fire 424 | . 88 15 . . 131 146 . . . . 44 Melee 41 | . . . . . . 1 . 13 . 24 3 Ram . | . . . . . . . . . . . . Kick . | . . . . . . . . . . . . Crush 22 | . 3 1 . 1 16 1 . . . . . Escape Stasis . | . . . . . . . . . . . . Rewire 19 | . . . . . . . . . . . 19 Trap . | . . . . . . . . . . . . Miscellaneous . | . . . . . . . . . . . . Route ------- -11/Scrapyard -10/Materials (discovered 5 exits: *Mat x3 / *Min / *Sub) -10/Mines (discovered 3 exits: *Mat x2 / *Exi) -10/Exiles -9/Mines -8/Materials (discovered 3 exits: *Fac x3) -7/Factory (discovered 5 exits: Fac x2 / *Sto / Low x2) -7/Storage (discovered 2 exits: Fac / *Rec) -7/Recycling (discovered 2 exits: *Fac / *Scr) -7/Scraptown -5/Factory (discovered 6 exits: [*Fac x2] / *Upp x2 / *Ext x2) -5/Extension History --------- Turn | Location | Event 28 | -11/Scrapyard | Discovered new exit (range 15) 93 | -11/Scrapyard | Entered Materials 300 | -10/Materials | Build established: Mutant 488 | -10/Materials | Discovered new exit (range 9) 1026 | -10/Materials | Discovered new exit (range 12) 2474 | -10/Materials | Learned location of Mines (-10) 2551 | -10/Materials | Loaded intel: 18 trap records 2616 | -10/Materials | Identified exit to Materials 2739 | -10/Materials | Learned 4 Subcaves zone layouts 2784 | -10/Materials | Learned location of 1 exit from Recycling 2819 | -10/Materials | Identified exit to Subcaves 2862 | -10/Materials | Identified exit to Mines 3091 | -10/Materials | Repaired Assault Rifle 3230 | -10/Materials | Entered Mines 3231 | -10/Mines | Assembled infested the area 3658 | -10/Mines | A weapon hastily lodged in a ceiling crevice suddenly fell to the ground 4194 | -10/Mines | Received a Rocket Launcher from a helpful Derelict 4203 | -10/Mines | Discovered exit to Materials (range 12) 4255 | -10/Mines | Core integrity fell below 50% 4297 | -10/Mines | Discovered exit to Materials (range 12) 4725 | -10/Mines | Escorted by a lone wolf Derelict 5320 | -10/Mines | Deemed a non-threat by the Exiles lab entrance 5320 | -10/Mines | Discovered new exit (range 5) 5332 | -10/Mines | Entered Exiles 5332 | -10/Exiles | Accompanied by 1 ally 5409 | -10/Exiles | Met 8R-AWN 5464 | -10/Exiles | Met EX-HEX 5550 | -10/Exiles | Met EX-BIN 5588 | -10/Exiles | Aligned with FarCom system 5592 | -10/Exiles | Given EX-Vault access code 5665 | -10/Exiles | Opened EX-Vault 5690 | -10/Exiles | Found Trap Reconfigurator 5755 | -10/Exiles | Warned to stay clear of 0b10 Research branches 5847 | -10/Exiles | Met EX-DEC 6156 | -10/Exiles | Discovered new exit (range 12) 6191 | -10/Exiles | Left Exiles lab with Trap Reconfigurator 6191 | -10/Exiles | Entered Mines 6371 | -9/Mines | Discovered new exit (range 5) 6387 | -9/Mines | Entered Materials 6387 | -8/Materials | Evolved 4 slots: Propulsion x2, Utility x2 6489 | -8/Materials | Central database locked down 6505 | -8/Materials | Build established: Skirmisher 6923 | -8/Materials | Build established: Scavenger-Mutant 7207 | -8/Materials | Destroyed 7 combat bots 7587 | -8/Materials | First assault squad dispatched 7620 | -8/Materials | Identified exit to Factory 7709 | -8/Materials | Lost 5 parts (3n1u1w) 7975 | -8/Materials | Build established: Mutant 8353 | -8/Materials | Core integrity fell below 50% 8652 | -8/Materials | Repaired Lgt. Treads 8891 | -8/Materials | Learned location of 2 exits from Lower Caves 8942 | -8/Materials | Learned location of 1 exit from Storage 9020 | -8/Materials | Learned location of 2 exits from Factory 9046 | -8/Materials | Learned Factory stockpile data 9072 | -8/Materials | Learned 2 Lower Caves zone layouts 9090 | -8/Materials | Learned location of Lower Caves (-7) 9201 | -8/Materials | Learned 2 Storage zone layouts 9398 | -8/Materials | Sterilization system engaged 9398 | -8/Materials | Non-combat units ordered to evacuate 9403 | -8/Materials | Lost 7 parts (1p3n2u1w) 9498 | -8/Materials | Combat units ordered to evacuate 9574 | -8/Materials | Entered Factory 9574 | -7/Factory | Evolved 2 slots: Utility x2 9575 | -7/Factory | Identified exit to Storage 9575 | -7/Factory | Identified exit to Lower Caves 9576 | -7/Factory | Identified exit to Factory 9653 | -7/Factory | Build established: Scavenger-Mutant 11646 | -7/Factory | Lost 9 parts (1p5n3u) 12388 | -7/Factory | Learned location of 2 exits from Lower Caves 12438 | -7/Factory | Lost 3 parts (1p1n1w) 12495 | -7/Factory | Learned location of 3 exits from Factory 12536 | -7/Factory | Learned location of Proximity Caves (-3) 12569 | -7/Factory | Learned 2 Upper Caves zone layouts 12572 | -7/Factory | Lost 4 parts (1p1n2u) 12590 | -7/Factory | Learned location of Zion (-6) 12658 | -7/Factory | Learned location of 1 exit from Cetus 12795 | -7/Factory | System corruption reached 10% 13031 | -7/Factory | Core integrity fell below 50% 13234 | -7/Factory | Repaired Cld. Pulse Rifle? 13286 | -7/Factory | Lost 5 parts (4n1u) 13348 | -7/Factory | Repaired Corrupted Cesium-ion Thruster? 13574 | -7/Factory | First assault squad dispatched 13606 | -7/Factory | Entered Storage 13608 | -7/Storage | Identified exit to Recycling 13893 | -7/Storage | Build established: Assassin 13920 | -7/Storage | Core integrity fell below 20% 13946 | -7/Storage | Found Prototype Processor 13950 | -7/Storage | Used back door to open Recycling access 13951 | -7/Storage | Entered Recycling 13952 | -7/Recycling | Identified exit to Factory 14091 | -7/Recycling | Identified Exp. Targeting Computer 14392 | -7/Recycling | Build established: Sprinter 14402 | -7/Recycling | Scanned before Scraplab entrance 14407 | -7/Recycling | Entered Scraplab 14409 | -7/Recycling | Discovered new exit (range 2) 14410 | -7/Recycling | Entered Scraptown 14410 | -7/Scraptown | System corruption cleaned by C-Scrubber 14502 | -7/Scraptown | Discovered exit to Factory (range 9) 14512 | -7/Scraptown | Visited Cyclists 14521 | -7/Scraptown | Visited Symbiants 14531 | -7/Scraptown | Visited Red Mages 14543 | -7/Scraptown | Visited Artisan Demo Area 14555 | -7/Scraptown | Turned away by UFD registrar 14559 | -7/Scraptown | Visited Awakened 14565 | -7/Scraptown | Visited Junk Repository 14729 | -7/Scraptown | Build established: Hacker-Sprinter 14748 | -7/Scraptown | Entered Factory 14748 | -5/Factory | Evolved 4 slots: Propulsion x2, Utility x2 14749 | -5/Factory | Identified exit to Upper Caves 14749 | -5/Factory | Identified exit to Extension 14886 | -5/Factory | Fabricated Imp. Trap Scanner (x2) 14991 | -5/Factory | Discovered new exit (range 16) 15303 | -5/Factory | Discovered new exit (range 12) 15401 | -5/Factory | Discovered exit to Upper Caves (range 15) 15648 | -5/Factory | Search patrols dispatched 15852 | -5/Factory | Watched by a mysterious "MATRIX" hacker 15852 | -5/Factory | Central database locked down 16082 | -5/Factory | Fabricated Graphene Brace? 16248 | -5/Factory | Search patrols dispatched 16274 | -5/Factory | Fabricated Hacking Suite (x1) 16332 | -5/Factory | Entered Extension 16371 | -5/Extension | Rescued a captive Derelict 16371 | -5/Extension | Rescued a captive Derelict 16388 | -5/Extension | Spotted B-75 Beast 16644 | -5/Extension | Build established: Hacker-Mutant 16965 | -5/Extension | Rescued A7 17198 | -5/Extension | Spotted B-75 Beast 17222 | -5/Extension | Self-destructed Last Messages --------------- YW-6IA(g) suffers critical hit (Burn). YW-6IA(g) destroyed. Slug penetrates Earth. Y-64 Sentinel heat damages Adv. Heat Sink, Adv. Heat Sink. Y-64 Sentinel suffers critical hit (Destroy). Destroyed Wave Gun. Y-64 Sentinel heat damages Neutrino Core, Imp. Treads, Imp. Treads. Penetrated by Slug. HV Slug penetrates Y-64 Sentinel. Y-64 Sentinel suffers critical hit (Destroy). Destroyed Imp. Treads. A7 suffers critical hit (Meltdown). A7: "I've done al##MISSION::FAILED##" Penetrated by Slug. Hvy. Beamcaster destroyed. Y-64 Sentinel heat damages Neutrino Core. Penetrated by Slug. Carbon-fiber Leg destroyed. Map ----- +----------------------------------------------------+ | #?????????????????????????? | | ##### ########## #?????????????????????????? | | #???# #????????# #?????????????????????????? | | #?####+#+########????# #?????????????????????????? | | ??# #????# #?????????????????????????? | | ??# #????# ####??????????????????????? | | ??# #????# #??????????????????????? | | ??# #????# #??????????????????????? | | ??# ###### #??????????????????????? | | ??# %[[[ ## # #??????????????????????? | | ??# + # #??????????????????????? | | ??# ## # ##?????????????????????? | | ??# ### ##?????????????????????? | | ??# #?# ###????????????????????? | | ??# #?# # #????????????????????? | | ??###############?# # #??????????????????? | | ??????????????????#### #??# #?????????????????? | | ??????????????????#### #??????????????????????? | | ???????????????#######+## #??????????????????????? | | ???????????????# # ##?????????????????????? | | ???????????????# + %#?????????????????????? | | ???????????????# # ;#?????????????????????? | | ???????????????# ; # #????????????????????? | | ???????????????##########%## #???????????????????? | | ????????????????????# #=#?# #??????????????????? | | ?????????????????????# !@#??##??????????????????? | | ?????????????????????##;%Y;#?????????????????????? | | ??????????????????????#%BBRYR ???????????????????? | | ??????????????????????# BB% ???????????????? | | ??????????????????????; w ????????????? | | ?????????????????????## % BB ????????????? | | ??????????????????????# BB ?????????????? | | ???????????????w?????? ?????????????? | | ?????????????????????? % % ????????????? | | ????????????????????? ???????????? | | ????????????????????? % ????????????? | | ????????????????????? u u ????????????? | | ????????????????????### % ?????????????? | | ??????????????????????# ???????????????? | | ??????????????????????# ?????????????????? | | ??????????????????????? ????????????????????? | | ??????????????????????? ??????????????????????? | | ?????????????????????????????????????????????????? | | ?????????????????????????????????????????????????? | | ?????????????????????????????????????????????????? | | | | | | | | | | | +----------------------------------------------------+ Best States ------------- Heat Dissipation 59 Energy Generation 21 Energy Capacity 350 Matter Stores 300 Matter Capacity 300 Sight Range 16 Terrain Scan Range 16 Terrain Scan Density 10 ECM Strength 2 Jamming Range 12 Cloak Strength 2 Corruption Containment 8 Armor Coverage 600 Resistance: KI 20 Resistance: EM 15 Evasion (%) 65 Targeting Accuracy 12 Core Analysis 6 Recoil Reduction 4 Offensive Hacking 11 Defensive Hacking 36 Authchip Count 2 Trap Extractor Capacity 6 Item Schematics ----------------- Hacking Suite | -8/Materials | Scanalyzed Graphene Brace | -7/Factory | Scanalyzed Imp. Trap Scanner | -7/Recycling | Hacked Adv. System Shield | -5/Factory | Scanalyzed Enh. Fission Core | -5/Factory | Scanalyzed Mic. Fission Core | -5/Factory | Scanalyzed CPS Tube | -5/Factory | Scanalyzed Robot Schematics ------------------ None Fabricated ------------ Imp. Trap Scanner | x2 | -5/Factory | Authchip Graphene Brace | x2 | -5/Factory | Authchip Hacking Suite | x1 | -5/Factory Repaired ---------- Assault Rifle | 37% | -10/Materials Lgt. Treads | 16% | -8/Materials Cld. Pulse Rifle | 14% | -7/Factory Cesium-ion Thruster | 88% | -7/Factory | Corrupted Studied --------- Imp. Treads | -8/Materials | Hacked Nuclear Pulse Array | -5/Factory | Hacked Mic. Fission Core | -5/Factory | Hacked Maul | -5/Factory | Hacked Alien Tech Used ----------------- None Achievements -------------- Bending The Rules Total Silence Challenges ------------ None Game ------ Seed LaserProtonAccelerator Manual? 0 Play Time 02:19:39 Cumulative 46.3 hours Start 2026.07.15 @ 15:07:12 End 2026.07.15 @ 17:40:15 Sessions 1 Manual Loads 0 Difficulty Rogue Special Mode None Game No. 38 Rogue 37 Adventurer 1 Explorer 0 Win Type - Total 1 Types 1/0/0/0/0/0/0/0/0/0 Lore% 30 Gallery% 37 Achievement% 37 Wizard Run 0 Options --------- Layout 1 ASCII 0 Keyboard 0 Movement Numpad Keybinds 0 Fullscreen 1 Font 32/SmallcapsGlow Map View 50x35 Zoom Use 0% Tactical HUD 0 Map Filters NONE Filters NONE Steam 1 RUN: c46ae927-c8d9-46b8-97a6-898e8ae8fa8d